[Event "Early-Titled-Tuesday-Blitz-December-26-2023"]
[Site "Chess.com"]
[Date "2023.12.26"]
[Round "5"]
[White "combidharma"]
[Black "jeetjain"]
[Result "1-0"]
[WhiteElo "2784"]
[BlackElo "2579"]
[TimeControl "180+1"]
[EndTime "8:51:00 PST"]
[Termination "combidharma won by resignation"]

1. e4 {[%clk 0:02:59.3]} 1... d6 {[%clk 0:02:58.9]} 2. d4 {[%clk 0:02:58.6]}
2... g6 {[%clk 0:02:57.3]} 3. Nc3 {[%clk 0:02:58.5]} 3... Bg7 {[%clk 0:02:47.2]}
4. Be3 {[%clk 0:02:59.4]} 4... c6 {[%clk 0:02:47.6]} 5. Qd2 {[%clk 0:02:57.9]}
5... Nd7 {[%clk 0:02:48.2]} 6. O-O-O {[%clk 0:02:57.5]} 6... b5 {[%clk
0:02:48.4]} 7. Kb1 {[%clk 0:02:55]} 7... Bb7 {[%clk 0:02:46]} 8. f3 {[%clk
0:02:55.2]} 8... e5 {[%clk 0:02:45.3]} 9. g4 {[%clk 0:02:55]} 9... h5 {[%clk
0:02:42.5]} 10. g5 {[%clk 0:02:54.7]} 10... Ne7 {[%clk 0:02:41.4]} 11. dxe5
{[%clk 0:02:46.5]} 11... dxe5 {[%clk 0:02:39.8]} 12. Nh3 {[%clk 0:02:37.4]}
12... Qc7 {[%clk 0:02:36.3]} 13. Bxb5 {[%clk 0:02:35.5]} 13... cxb5 {[%clk
0:02:27.8]} 14. Nxb5 {[%clk 0:02:36.4]} 14... Qc6 {[%clk 0:02:28]} 15. Nd6+
{[%clk 0:02:36.4]} 15... Kf8 {[%clk 0:02:28.1]} 16. Nxb7 {[%clk 0:02:36.4]}
16... Qxb7 {[%clk 0:02:20.7]} 17. Qxd7 {[%clk 0:02:35.6]} 17... Qxd7 {[%clk
0:02:19.2]} 18. Rxd7 {[%clk 0:02:36.5]} 18... Nc6 {[%clk 0:02:20.1]} 19. Rhd1
{[%clk 0:02:35.6]} 19... Nd4 {[%clk 0:02:16.3]} 20. c3 {[%clk 0:02:34.4]} 20...
Nxf3 {[%clk 0:02:13.4]} 21. Rf1 {[%clk 0:02:30.9]} 1-0

[Event "Early-Titled-Tuesday-Blitz-December-26-2023"]
[Site "Chess.com"]
[Date "2023.12.26"]
[Round "5"]
[White "The_Straightforward_Rook"]
[Black "jacky72"]
[Result "0-1"]
[WhiteElo "2521"]
[BlackElo "2807"]
[TimeControl "180+1"]
[EndTime "8:51:50 PST"]
[Termination "jacky72 won by resignation"]

1. e4 {[%clk 0:02:57.4]} 1... e6 {[%clk 0:02:54.9]} 2. d4 {[%clk 0:02:56.4]}
2... d5 {[%clk 0:02:54.9]} 3. e5 {[%clk 0:02:57.1]} 3... c5 {[%clk 0:02:55]} 4.
c3 {[%clk 0:02:57.6]} 4... Nc6 {[%clk 0:02:55]} 5. Nf3 {[%clk 0:02:58.2]} 5...
f6 {[%clk 0:02:53]} 6. Bd3 {[%clk 0:02:53.1]} 6... cxd4 {[%clk 0:02:52.1]} 7.
cxd4 {[%clk 0:02:52.4]} 7... Bb4+ {[%clk 0:02:49.8]} 8. Nc3 {[%clk 0:02:50.7]}
8... Nge7 {[%clk 0:02:49.6]} 9. exf6 {[%clk 0:02:48.8]} 9... gxf6 {[%clk
0:02:49.5]} 10. Bh6 {[%clk 0:02:41.2]} 10... Qa5 {[%clk 0:02:44]} 11. Bg7 {[%clk
0:02:32.5]} 11... Rg8 {[%clk 0:02:43.3]} 12. Bxf6 {[%clk 0:02:33.1]} 12... Rxg2
{[%clk 0:02:43.7]} 13. Kf1 {[%clk 0:02:32.4]} 13... Rg8 {[%clk 0:02:40.6]} 14.
Bxh7 {[%clk 0:02:30.3]} 14... Rf8 {[%clk 0:02:39.2]} 15. Bxe7 {[%clk 0:02:22.9]}
15... Nxe7 {[%clk 0:02:35.6]} 16. Ne5 {[%clk 0:02:22.6]} 16... Bxc3 {[%clk
0:02:32.4]} 17. bxc3 {[%clk 0:02:20.2]} 17... Qxc3 {[%clk 0:02:33.3]} 18. Rc1
{[%clk 0:02:13.9]} 18... Qh3+ {[%clk 0:02:32.8]} 19. Ke1 {[%clk 0:02:11.4]}
19... Qxh7 {[%clk 0:02:27.4]} 20. Qa4+ {[%clk 0:02:05]} 20... Nc6 {[%clk
0:02:27.3]} 21. Rxc6 {[%clk 0:02:00.1]} 21... Qe4+ {[%clk 0:02:16.4]} 22. Kd2
{[%clk 0:01:54.4]} 22... Rxf2+ {[%clk 0:02:15.8]} 23. Kc3 {[%clk 0:01:50.9]}
23... Qe3+ {[%clk 0:02:08]} 0-1

[Event "Early-Titled-Tuesday-Blitz-December-26-2023"]
[Site "Chess.com"]
[Date "2023.12.26"]
[Round "5"]
[White "artin10862"]
[Black "GoltsevDmitry2000"]
[Result "1-0"]
[WhiteElo "2929"]
[BlackElo "2699"]
[TimeControl "180+1"]
[EndTime "8:52:46 PST"]
[Termination "artin10862 won by resignation"]

1. d4 {[%clk 0:03:00.9]} 1... e6 {[%clk 0:03:00.1]} 2. Nf3 {[%clk 0:02:55.3]}
2... d5 {[%clk 0:02:59.5]} 3. g3 {[%clk 0:02:55.3]} 3... Nf6 {[%clk 0:02:59.8]}
4. Bg2 {[%clk 0:02:54.8]} 4... c5 {[%clk 0:03:00.7]} 5. O-O {[%clk 0:02:53]}
5... Nc6 {[%clk 0:03:01.3]} 6. b3 {[%clk 0:02:49.1]} 6... Bd6 {[%clk 0:03:01.3]}
7. Bb2 {[%clk 0:02:48.3]} 7... Qe7 {[%clk 0:03:01.7]} 8. c4 {[%clk 0:02:45.5]}
8... O-O {[%clk 0:03:01]} 9. cxd5 {[%clk 0:02:33.8]} 9... exd5 {[%clk
0:02:59.5]} 10. Nc3 {[%clk 0:02:34.1]} 10... Be6 {[%clk 0:02:49.4]} 11. Nb5
{[%clk 0:02:33.7]} 11... Bb8 {[%clk 0:02:44.8]} 12. Ba3 {[%clk 0:02:08]} 12...
b6 {[%clk 0:02:40.6]} 13. Rc1 {[%clk 0:02:07.8]} 13... Nd7 {[%clk 0:02:37.1]}
14. Nc3 {[%clk 0:02:01.2]} 14... Nf6 {[%clk 0:02:28.5]} 15. dxc5 {[%clk
0:01:55.6]} 15... bxc5 {[%clk 0:02:29.4]} 16. Na4 {[%clk 0:01:55.8]} 16... Ne4
{[%clk 0:02:23.9]} 17. Nxc5 {[%clk 0:01:53.2]} 17... Bd6 {[%clk 0:02:20.4]} 18.
Nxe6 {[%clk 0:01:52.8]} 18... fxe6 {[%clk 0:02:21.3]} 19. Rxc6 {[%clk
0:01:34.5]} 19... Bxa3 {[%clk 0:02:20.1]} 20. Nd4 {[%clk 0:01:34.8]} 20... Rf6
{[%clk 0:01:57.7]} 21. Nxe6 {[%clk 0:01:30.5]} 21... Qd7 {[%clk 0:01:44.5]} 22.
Bxe4 {[%clk 0:01:27]} 22... Qxc6 {[%clk 0:01:44.9]} 23. Bxd5 {[%clk 0:01:26.9]}
23... Qd6 {[%clk 0:01:40]} 24. Ng5+ {[%clk 0:01:20.2]} 1-0

[Event "Early-Titled-Tuesday-Blitz-December-26-2023"]
[Site "Chess.com"]
[Date "2023.12.26"]
[Round "5"]
[White "Alexander_Donchenko"]
[Black "BogdanDeac"]
[Result "1/2-1/2"]
[WhiteElo "2919"]
[BlackElo "3009"]
[TimeControl "180+1"]
[EndTime "8:52:56 PST"]
[Termination "Game drawn by agreement"]

1. Nf3 {[%clk 0:02:57.2]} 1... d5 {[%clk 0:02:59.1]} 2. g3 {[%clk 0:02:57.3]}
2... Nd7 {[%clk 0:02:57.4]} 3. d4 {[%clk 0:02:56.6]} 3... Ngf6 {[%clk
0:02:57.6]} 4. Bg2 {[%clk 0:02:57.2]} 4... e6 {[%clk 0:02:58.5]} 5. O-O {[%clk
0:02:57.5]} 5... Be7 {[%clk 0:02:59.4]} 6. c4 {[%clk 0:02:57.7]} 6... O-O {[%clk
0:03:00.1]} 7. Qc2 {[%clk 0:02:57.8]} 7... c6 {[%clk 0:03:00.7]} 8. b3 {[%clk
0:02:56.2]} 8... b6 {[%clk 0:02:59.7]} 9. Nc3 {[%clk 0:02:55.2]} 9... Ba6 {[%clk
0:02:58.5]} 10. Bb2 {[%clk 0:02:50.4]} 10... Rc8 {[%clk 0:02:54.1]} 11. cxd5
{[%clk 0:02:28.9]} 11... cxd5 {[%clk 0:02:52.7]} 12. Rfc1 {[%clk 0:02:29.5]}
12... Ne4 {[%clk 0:02:40.6]} 13. Qd1 {[%clk 0:02:29.2]} 13... Nxc3 {[%clk
0:02:39.1]} 14. Rxc3 {[%clk 0:02:29.8]} 14... Rxc3 {[%clk 0:02:36.7]} 15. Bxc3
{[%clk 0:02:30.7]} 15... Qb8 {[%clk 0:02:22.4]} 16. Rc1 {[%clk 0:02:28.8]} 16...
Ba3 {[%clk 0:02:17]} 17. Rc2 {[%clk 0:02:28.9]} 17... Rc8 {[%clk 0:02:16.9]} 18.
e3 {[%clk 0:02:22.5]} 18... Qc7 {[%clk 0:01:46.8]} 19. Ne1 {[%clk 0:02:19.7]}
19... Qd8 {[%clk 0:01:17.7]} 20. Bd2 {[%clk 0:02:12]} 20... Bd6 {[%clk
0:01:12.4]} 21. Qc1 {[%clk 0:02:08.1]} 21... Rxc2 {[%clk 0:01:02]} 22. Qxc2
{[%clk 0:02:09]} 22... Qc7 {[%clk 0:00:49.5]} 23. Qxc7 {[%clk 0:02:05.1]} 23...
Bxc7 {[%clk 0:00:50.4]} 24. Bf1 {[%clk 0:02:03]} 24... Bb7 {[%clk 0:00:45.7]}
25. Nd3 {[%clk 0:01:59.6]} 1/2-1/2

[Event "Early-Titled-Tuesday-Blitz-December-26-2023"]
[Site "Chess.com"]
[Date "2023.12.26"]
[Round "5"]
[White "hsd2016"]
[Black "Dewarfd"]
[Result "1-0"]
[WhiteElo "2253"]
[BlackElo "2087"]
[TimeControl "180+1"]
[EndTime "8:53:14 PST"]
[Termination "hsd2016 won by resignation"]

1. e4 {[%clk 0:03:00.9]} 1... c5 {[%clk 0:02:55]} 2. Nf3 {[%clk 0:02:56.4]} 2...
e6 {[%clk 0:02:54.6]} 3. d4 {[%clk 0:02:55]} 3... cxd4 {[%clk 0:02:55.5]} 4.
Nxd4 {[%clk 0:02:55.9]} 4... a6 {[%clk 0:02:55.1]} 5. Bd3 {[%clk 0:02:53.4]}
5... Qc7 {[%clk 0:02:54.6]} 6. O-O {[%clk 0:02:52.7]} 6... Nc6 {[%clk
0:02:54.2]} 7. Nxc6 {[%clk 0:02:49.9]} 7... Qxc6 {[%clk 0:02:54.2]} 8. Nc3
{[%clk 0:02:48.3]} 8... b5 {[%clk 0:02:54]} 9. e5 {[%clk 0:02:48]} 9... Bb7
{[%clk 0:02:52.7]} 10. Be4 {[%clk 0:02:47.3]} 10... Qc7 {[%clk 0:02:52.8]} 11.
Bxb7 {[%clk 0:02:46.6]} 11... Qxb7 {[%clk 0:02:52.9]} 12. Re1 {[%clk 0:02:43.5]}
12... d6 {[%clk 0:02:24]} 13. exd6 {[%clk 0:02:40.9]} 13... Rd8 {[%clk
0:02:16.7]} 14. Ne4 {[%clk 0:02:39.1]} 14... Qc6 {[%clk 0:02:00.5]} 15. Bg5
{[%clk 0:02:32.8]} 15... f6 {[%clk 0:01:47.9]} 16. Bf4 {[%clk 0:01:54.4]} 16...
e5 {[%clk 0:01:46.1]} 17. Bxe5 {[%clk 0:01:48.5]} 17... fxe5 {[%clk 0:01:42.3]}
18. Qh5+ {[%clk 0:01:47.5]} 18... Kd7 {[%clk 0:01:27.8]} 19. Qf5+ {[%clk
0:01:46.5]} 19... Ke8 {[%clk 0:01:22.6]} 20. Qxe5+ {[%clk 0:01:41.6]} 20... Kd7
{[%clk 0:01:20.1]} 21. Qf5+ {[%clk 0:01:41.4]} 21... Ke8 {[%clk 0:01:17.9]} 22.
Nf6+ {[%clk 0:01:26]} 22... Kf7 {[%clk 0:01:11.4]} 23. Nxg8+ {[%clk 0:01:25.9]}
1-0

[Event "Early-Titled-Tuesday-Blitz-December-26-2023"]
[Site "Chess.com"]
[Date "2023.12.26"]
[Round "5"]
[White "Cheer_Down"]
[Black "SirStrateg"]
[Result "0-1"]
[WhiteElo "2494"]
[BlackElo "2666"]
[TimeControl "180+1"]
[EndTime "8:53:23 PST"]
[Termination "SirStrateg won by resignation"]

1. d4 {[%clk 0:02:48.6]} 1... Nf6 {[%clk 0:02:59.9]} 2. Nf3 {[%clk 0:02:47.9]}
2... e6 {[%clk 0:02:59.3]} 3. Bf4 {[%clk 0:02:45.8]} 3... b6 {[%clk 0:02:58.9]}
4. e3 {[%clk 0:02:44.6]} 4... Bb7 {[%clk 0:02:58.6]} 5. Be2 {[%clk 0:02:41.2]}
5... d6 {[%clk 0:02:57.4]} 6. h3 {[%clk 0:02:38.1]} 6... Nbd7 {[%clk 0:02:57.6]}
7. c4 {[%clk 0:02:36]} 7... h6 {[%clk 0:02:53.5]} 8. Nc3 {[%clk 0:02:35.6]} 8...
g5 {[%clk 0:02:52.7]} 9. Bh2 {[%clk 0:02:31.6]} 9... Bg7 {[%clk 0:02:53.1]} 10.
O-O {[%clk 0:02:28.8]} 10... Qe7 {[%clk 0:02:52.9]} 11. b4 {[%clk 0:02:28.5]}
11... Ne4 {[%clk 0:02:38]} 12. Nxe4 {[%clk 0:02:27.9]} 12... Bxe4 {[%clk
0:02:38.4]} 13. c5 {[%clk 0:02:24.8]} 13... bxc5 {[%clk 0:02:09.7]} 14. bxc5
{[%clk 0:02:24.7]} 14... dxc5 {[%clk 0:02:08.9]} 15. Rc1 {[%clk 0:02:24.5]}
15... O-O {[%clk 0:02:04.4]} 16. Bb5 {[%clk 0:02:14.8]} 16... Rac8 {[%clk
0:01:52.3]} 17. Bxd7 {[%clk 0:02:13.3]} 17... Qxd7 {[%clk 0:01:52.2]} 18. Rxc5
{[%clk 0:02:13.4]} 18... c6 {[%clk 0:01:44.2]} 19. Ne5 {[%clk 0:01:47.2]} 19...
Qb7 {[%clk 0:01:40.6]} 20. Nc4 {[%clk 0:01:42]} 20... Bd5 {[%clk 0:01:33.5]} 21.
Nd6 {[%clk 0:01:41.4]} 21... Qa6 {[%clk 0:01:32.7]} 22. Nxc8 {[%clk 0:01:41.4]}
22... Rxc8 {[%clk 0:01:32.7]} 23. Qc2 {[%clk 0:01:35.8]} 23... Bf8 {[%clk
0:01:30.3]} 24. Rc3 {[%clk 0:01:27.6]} 24... f5 {[%clk 0:01:30.7]} 25. Qc1
{[%clk 0:01:09.6]} 25... Qxa2 {[%clk 0:01:23.3]} 26. Ra3 {[%clk 0:01:07.9]}
26... Qxa3 {[%clk 0:01:23.2]} 0-1

[Event "Early-Titled-Tuesday-Blitz-December-26-2023"]
[Site "Chess.com"]
[Date "2023.12.26"]
[Round "5"]
[White "Alexchess1984"]
[Black "Witty_Alien"]
[Result "1-0"]
[WhiteElo "2718"]
[BlackElo "2467"]
[TimeControl "180+1"]
[EndTime "8:53:45 PST"]
[Termination "Alexchess1984 won on time"]

1. e4 {[%clk 0:03:00.9]} 1... c5 {[%clk 0:02:59.8]} 2. Nf3 {[%clk 0:02:58.9]}
2... d6 {[%clk 0:02:59.9]} 3. d4 {[%clk 0:02:58.8]} 3... cxd4 {[%clk 0:03:00.7]}
4. Qxd4 {[%clk 0:02:59.5]} 4... a6 {[%clk 0:02:56.8]} 5. Bc4 {[%clk 0:02:58]}
5... Nc6 {[%clk 0:02:53.6]} 6. Qd3 {[%clk 0:02:57.2]} 6... g6 {[%clk 0:02:24.8]}
7. Nc3 {[%clk 0:02:56.2]} 7... Bg7 {[%clk 0:02:25.1]} 8. Bg5 {[%clk 0:02:44.8]}
8... h6 {[%clk 0:01:57]} 9. Bf4 {[%clk 0:02:33.2]} 9... g5 {[%clk 0:01:52.4]}
10. Bg3 {[%clk 0:02:29.2]} 10... b5 {[%clk 0:01:18.7]} 11. Bb3 {[%clk
0:02:17.3]} 11... g4 {[%clk 0:01:05.4]} 12. Qd5 {[%clk 0:02:03.9]} 12... gxf3
{[%clk 0:00:49.8]} 13. Qxf7+ {[%clk 0:02:03.2]} 13... Kd7 {[%clk 0:00:50.4]} 14.
Qxg7 {[%clk 0:02:04.1]} 14... fxg2 {[%clk 0:00:49.6]} 15. Rg1 {[%clk 0:02:04.5]}
15... Nf6 {[%clk 0:00:49.3]} 16. e5 {[%clk 0:02:03.7]} 16... b4 {[%clk
0:00:22.6]} 17. exf6 {[%clk 0:01:58.6]} 17... bxc3 {[%clk 0:00:22.4]} 18. O-O-O
{[%clk 0:01:59.5]} 18... cxb2+ {[%clk 0:00:22.3]} 19. Kb1 {[%clk 0:01:59.8]}
19... Kc7 {[%clk 0:00:03.5]} 20. fxe7 {[%clk 0:01:59.1]} 20... Qe8 {[%clk
0:00:02.1]} 21. Rxd6 {[%clk 0:01:57.4]} 21... Kb7 {[%clk 0:00:01.5]} 22. Bd5
{[%clk 0:01:53.5]} 22... Bd7 {[%clk 0:00:02.1]} 23. Rxd7+ {[%clk 0:01:53.6]}
23... Qxd7 {[%clk 0:00:02.6]} 24. e8=Q {[%clk 0:01:54.5]} 24... Raxe8 {[%clk
0:00:02.4]} 25. Qxd7+ {[%clk 0:01:54]} 1-0

[Event "Early-Titled-Tuesday-Blitz-December-26-2023"]
[Site "Chess.com"]
[Date "2023.12.26"]
[Round "5"]
[White "wonderfultime"]
[Black "stollenmonster"]
[Result "1-0"]
[WhiteElo "3022"]
[BlackElo "2925"]
[TimeControl "180+1"]
[EndTime "8:53:48 PST"]
[Termination "wonderfultime won by resignation"]

1. d4 {[%clk 0:02:51.3]} 1... Nf6 {[%clk 0:02:59.5]} 2. c4 {[%clk 0:02:51.5]}
2... e6 {[%clk 0:02:59.3]} 3. Nc3 {[%clk 0:02:51.8]} 3... d5 {[%clk 0:03:00]} 4.
Nf3 {[%clk 0:02:51.4]} 4... Ne4 {[%clk 0:02:59.9]} 5. g3 {[%clk 0:02:38.4]} 5...
Be7 {[%clk 0:02:59.3]} 6. Bg2 {[%clk 0:02:38.7]} 6... O-O {[%clk 0:02:59.6]} 7.
O-O {[%clk 0:02:39.1]} 7... f5 {[%clk 0:03:00.2]} 8. Ne5 {[%clk 0:02:21.6]} 8...
c6 {[%clk 0:03:00.2]} 9. Qb3 {[%clk 0:02:12]} 9... Qb6 {[%clk 0:02:59]} 10. e3
{[%clk 0:02:09.1]} 10... Nd7 {[%clk 0:02:57.9]} 11. Nd3 {[%clk 0:02:09.1]} 11...
Ndf6 {[%clk 0:02:53.3]} 12. f3 {[%clk 0:02:00.5]} 12... Nxc3 {[%clk 0:02:52.4]}
13. bxc3 {[%clk 0:02:00.6]} 13... Qa6 {[%clk 0:02:52.2]} 14. Ne5 {[%clk
0:01:50.8]} 14... Nd7 {[%clk 0:02:50.3]} 15. cxd5 {[%clk 0:01:50.4]} 15... Nxe5
{[%clk 0:02:45.9]} 16. dxe5 {[%clk 0:01:50.8]} 16... cxd5 {[%clk 0:02:46]} 17.
Bd2 {[%clk 0:01:40.1]} 17... Bd7 {[%clk 0:02:44.8]} 18. h3 {[%clk 0:01:20.9]}
18... Ba4 {[%clk 0:02:20.5]} 19. Qb2 {[%clk 0:01:19.3]} 19... Rad8 {[%clk
0:02:00.7]} 20. Kh2 {[%clk 0:01:19.5]} 20... b6 {[%clk 0:01:57.9]} 21. Rae1
{[%clk 0:01:16]} 21... Bb5 {[%clk 0:01:55.7]} 22. Rf2 {[%clk 0:01:16.1]} 22...
Bd3 {[%clk 0:01:55.4]} 23. Bc1 {[%clk 0:01:15]} 23... Bc5 {[%clk 0:01:54]} 24.
Rd2 {[%clk 0:01:09.9]} 24... g5 {[%clk 0:01:48.1]} 25. Rxd3 {[%clk 0:01:01.8]}
25... Qxd3 {[%clk 0:01:46.7]} 26. Bf1 {[%clk 0:01:01.7]} 26... Ba3 {[%clk
0:01:37.9]} 27. Bxd3 {[%clk 0:01:01.7]} 27... Bxb2 {[%clk 0:01:38]} 28. Bxb2
{[%clk 0:01:02.6]} 28... Rc8 {[%clk 0:01:38.3]} 29. Kg2 {[%clk 0:01:01.2]} 29...
Rf7 {[%clk 0:01:37.3]} 30. g4 {[%clk 0:00:59.7]} 30... fxg4 {[%clk 0:01:37]} 31.
hxg4 {[%clk 0:00:59.7]} 31... Rc5 {[%clk 0:01:36.5]} 32. Kg3 {[%clk 0:00:56.1]}
32... Rfc7 {[%clk 0:01:35.4]} 33. Rh1 {[%clk 0:00:53.8]} 33... b5 {[%clk
0:01:31]} 34. a3 {[%clk 0:00:53.8]} 34... a5 {[%clk 0:01:31.6]} 35. Rh5 {[%clk
0:00:52.4]} 35... Rg7 {[%clk 0:01:29.2]} 36. Rh6 {[%clk 0:00:52.4]} 1-0

[Event "Early-Titled-Tuesday-Blitz-December-26-2023"]
[Site "Chess.com"]
[Date "2023.12.26"]
[Round "5"]
[White "PawnEatingZombie"]
[Black "giomar27"]
[Result "0-1"]
[WhiteElo "2156"]
[BlackElo "2395"]
[TimeControl "180+1"]
[EndTime "8:53:49 PST"]
[Termination "giomar27 won on time"]

1. e4 {[%clk 0:02:56.1]} 1... e5 {[%clk 0:02:59.9]} 2. Nf3 {[%clk 0:02:55.4]}
2... Nc6 {[%clk 0:03:00.4]} 3. d3 {[%clk 0:02:55.7]} 3... Nf6 {[%clk 0:02:59.9]}
4. c3 {[%clk 0:02:54.5]} 4... d5 {[%clk 0:03:00.2]} 5. Nbd2 {[%clk 0:02:54.4]}
5... a5 {[%clk 0:02:59.9]} 6. Be2 {[%clk 0:02:54]} 6... Bc5 {[%clk 0:03:00.1]}
7. O-O {[%clk 0:02:54.4]} 7... O-O {[%clk 0:03:00.3]} 8. a4 {[%clk 0:02:52.6]}
8... Re8 {[%clk 0:02:57.9]} 9. Nb3 {[%clk 0:02:51]} 9... Bf8 {[%clk 0:02:55.9]}
10. Nfd2 {[%clk 0:02:37.6]} 10... Be6 {[%clk 0:02:51.6]} 11. exd5 {[%clk
0:02:36.8]} 11... Nxd5 {[%clk 0:02:51.1]} 12. Nc4 {[%clk 0:02:36.8]} 12... f5
{[%clk 0:02:43]} 13. Bf3 {[%clk 0:02:09.5]} 13... Qf6 {[%clk 0:02:41.3]} 14. Re1
{[%clk 0:02:02.4]} 14... Rad8 {[%clk 0:02:39.1]} 15. g3 {[%clk 0:01:24.8]} 15...
e4 {[%clk 0:02:35.8]} 16. dxe4 {[%clk 0:01:15.8]} 16... Nxc3 {[%clk 0:02:30.3]}
17. Qc2 {[%clk 0:00:48.7]} 17... Nxe4 {[%clk 0:02:28.7]} 18. Bf4 {[%clk
0:00:07.5]} 18... Nb4 {[%clk 0:02:19.3]} 19. Qe2 {[%clk 0:00:05.4]} 19... Nd3
{[%clk 0:02:16.5]} 20. Ncxa5 {[%clk 0:00:02]} 20... Nxf4 {[%clk 0:01:58.8]} 21.
gxf4 {[%clk 0:00:01.4]} 21... Bf7 {[%clk 0:01:44.7]} 22. Red1 {[%clk 0:00:01.1]}
22... Nc3 {[%clk 0:01:40.8]} 0-1

[Event "Early-Titled-Tuesday-Blitz-December-26-2023"]
[Site "Chess.com"]
[Date "2023.12.26"]
[Round "5"]
[White "Hikaru"]
[Black "Vincent_Vega95"]
[Result "1-0"]
[WhiteElo "3218"]
[BlackElo "2857"]
[TimeControl "180+1"]
[EndTime "8:54:00 PST"]
[Termination "Hikaru won by resignation"]

1. Nf3 {[%clk 0:03:00.9]} 1... Nf6 {[%clk 0:02:59.7]} 2. e3 {[%clk 0:03:00.5]}
2... g6 {[%clk 0:03:00.1]} 3. b3 {[%clk 0:03:00]} 3... Bg7 {[%clk 0:03:00.7]} 4.
d4 {[%clk 0:02:59.9]} 4... O-O {[%clk 0:03:00.2]} 5. Bb2 {[%clk 0:02:59.7]} 5...
d6 {[%clk 0:03:00.4]} 6. c4 {[%clk 0:02:59.7]} 6... c5 {[%clk 0:02:59.7]} 7. Be2
{[%clk 0:02:59.7]} 7... Bf5 {[%clk 0:02:59.5]} 8. O-O {[%clk 0:02:59.1]} 8...
Nc6 {[%clk 0:02:59.5]} 9. Nc3 {[%clk 0:02:55.2]} 9... Ne4 {[%clk 0:02:59.1]} 10.
Na4 {[%clk 0:02:51.1]} 10... Qa5 {[%clk 0:02:45]} 11. Qc1 {[%clk 0:02:44.4]}
11... cxd4 {[%clk 0:02:36.7]} 12. Nxd4 {[%clk 0:02:38.5]} 12... Bd7 {[%clk
0:02:27.6]} 13. Nb5 {[%clk 0:02:31.2]} 13... Bxb2 {[%clk 0:02:05.3]} 14. Qxb2
{[%clk 0:02:32.1]} 14... a6 {[%clk 0:02:05.9]} 15. Nbc3 {[%clk 0:02:31.7]} 15...
Nxc3 {[%clk 0:02:05.8]} 16. Nxc3 {[%clk 0:02:32.6]} 16... Rab8 {[%clk 0:02:02]}
17. Nd5 {[%clk 0:02:23.7]} 17... Be6 {[%clk 0:02:00.1]} 18. b4 {[%clk
0:02:21.8]} 18... Qd8 {[%clk 0:01:59.6]} 19. Nf4 {[%clk 0:02:21.9]} 19... Bd7
{[%clk 0:01:49.2]} 20. Rfd1 {[%clk 0:02:21.1]} 20... b6 {[%clk 0:01:46.5]} 21.
a3 {[%clk 0:02:20.5]} 21... a5 {[%clk 0:01:41.9]} 22. Rac1 {[%clk 0:02:18.2]}
22... Re8 {[%clk 0:01:40]} 23. h4 {[%clk 0:02:16.1]} 23... h6 {[%clk 0:01:37.4]}
24. Qc3 {[%clk 0:02:09.9]} 24... Qc7 {[%clk 0:01:29.8]} 25. c5 {[%clk
0:02:02.3]} 25... dxc5 {[%clk 0:01:03]} 26. bxc5 {[%clk 0:02:01.4]} 26... b5
{[%clk 0:01:03.6]} 27. Nd5 {[%clk 0:01:46.6]} 27... Qe5 {[%clk 0:00:52.4]} 28.
Qxe5 {[%clk 0:01:36.2]} 28... Nxe5 {[%clk 0:00:52.3]} 29. Nb6 {[%clk 0:01:37.1]}
29... Bc6 {[%clk 0:00:45.7]} 30. f4 {[%clk 0:01:36.9]} 30... Nc4 {[%clk
0:00:46.1]} 31. Bxc4 {[%clk 0:01:36.9]} 31... bxc4 {[%clk 0:00:47]} 32. Rxc4
{[%clk 0:01:37.1]} 32... e5 {[%clk 0:00:44.8]} 33. Rd6 {[%clk 0:01:32.3]} 33...
Bb5 {[%clk 0:00:44.8]} 34. Rc3 {[%clk 0:01:31.3]} 34... exf4 {[%clk 0:00:45.2]}
35. exf4 {[%clk 0:01:32.2]} 35... Rbd8 {[%clk 0:00:41.4]} 36. Rxd8 {[%clk
0:01:32.2]} 36... Rxd8 {[%clk 0:00:41.6]} 37. c6 {[%clk 0:01:33.1]} 1-0